lending/lending_fUSD_20250819
["ID","MTS","AMOUNT","RATE_DAILY","PERIOD"]
[380172287,1755593308598,-400.0,0.00030136,120]
[380172288,1755593308632,-400.0,0.00030136,120]
[380172289,1755593308665,-539.77,0.00030136,120]
[380172290,1755593308700,-400.0,0.00030136,120]
[380172291,1755593308735,-400.0,0.00030136,120]
[380172292,1755593308770,-400.0,0.00030136,120]
[380172293,1755593308806,-400.0,0.00030136,120]
[380172294,1755593308841,-840.24,0.00030136,120]
[380172295,1755593308876,-1053.66,0.00030136,120]
[380172296,1755593308909,-915.49,0.00030136,120]
[380172297,1755593308943,-400.0,0.00030136,120]
[380172298,1755593308977,-400.0,0.00030136,120]
[380172299,1755593309011,-503.59,0.00030136,120]
[380172300,1755593309048,-400.0,0.00030136,120]
[380172301,1755593309083,-400.0,0.00030136,120]
[380172302,1755593309119,-400.0,0.00030136,120]
[380172303,1755593309155,-400.0,0.00030136,120]
[380172304,1755593309190,-595.32,0.00030136,120]
[380172305,1755593309225,-1400.56,0.00030136,120]
[380172306,1755593309516,-400.0,0.00030136,90]
[380172307,1755593309553,-400.0,0.00030136,120]
[380172308,1755593309587,-400.0,0.00030136,120]
[380172309,1755593309620,-400.0,0.00030136,120]
[380172310,1755593309653,-400.0,0.00030136,120]
[380172311,1755593309691,-400.0,0.00030136,120]
[380172312,1755593309728,-2338.77,0.00030136,120]
[380172313,1755593309762,-2546.56,0.00030136,120]
[380172314,1755593309796,-1016.71,0.00030136,120]
[380172315,1755593309827,-1361.85,0.00030136,120]
[380172316,1755593309860,-1418.62,0.00030136,120]
[380172317,1755593309893,-400.0,0.00030136,120]
[380172318,1755593309928,-400.0,0.00030136,120]
[380172319,1755593309961,-400.0,0.00030136,120]
[380172320,1755593309993,-3052.41,0.00030136,120]
[380172321,1755593310027,-875.32,0.00030136,120]
[380172322,1755593310060,-2708.53,0.00030136,120]
[380172323,1755593310092,-412.27,0.00030136,120]
[380172324,1755593310125,-446.75,0.00030136,120]
[380172325,1755593310161,-400.0,0.00030136,120]
[380172326,1755593310198,-1524.95,0.00030136,120]
[380172327,1755593310235,-400.0,0.00030136,120]
[380172328,1755593310269,-623.68,0.00030136,120]
[380172329,1755593310304,-400.0,0.00030136,120]
[380172330,1755593310339,-573.04,0.00030136,120]
[380172331,1755593310375,-400.0,0.00030136,120]
[380172332,1755593310410,-1958.09,0.00030136,120]
[380172333,1755593310444,-457.04,0.00030136,120]
[380172334,1755593310481,-400.0,0.00030136,120]
[380172335,1755593310518,-414.91113788,0.00030136,120]
[380172336,1755593310553,-3367.21,0.00030136,120]
[380172337,1755593310797,-1541.16,0.00030136,120]
[380172338,1755593310837,-576.85,0.00030136,120]
[380172339,1755593310876,-400.0,0.00030136,120]
[380172340,1755593310913,-778.23,0.00030136,120]
[380172341,1755593310951,-777.66,0.00030136,120]
[380172342,1755593310985,-400.0,0.00030136,120]
[380172343,1755593311022,-1157.51,0.00030136,120]
[380172344,1755593311055,-400.0,0.00030136,120]
[380172345,1755593311088,-883.93,0.00030136,120]
[380172346,1755593311121,-400.0,0.00030136,120]
[380172347,1755593311155,-400.0,0.00030136,120]
[380172348,1755593311189,-416.01,0.00030136,120]
[380172349,1755593311224,-1023.12,0.00030136,120]
[380172350,1755593311267,-664.46,0.00030136,120]
[380172351,1755593311306,-411.54,0.00030136,120]
[380172352,1755593311341,-400.0,0.00030136,120]
[380172353,1755593311376,-400.0,0.00030136,120]
[380172354,1755593311410,-1181.57,0.00030136,30]
[380172355,1755593311444,-1900.5,0.00030136,120]
[380172356,1755593311485,-421.80746261,0.00030136,120]
[380172357,1755593311539,-400.0,0.00030136,120]
[380172358,1755593311576,-635.35,0.00030136,120]
[380172359,1755593311612,-400.0,0.00030136,120]
[380172360,1755593311647,-400.0,0.00030136,120]
[380172361,1755593311680,-400.0,0.00030136,120]
[380172362,1755593311715,-400.0,0.00030136,120]
[380172363,1755593311755,-2782.77,0.00030136,120]
[380172364,1755593311797,-880.07,0.00030136,120]
[380172365,1755593311836,-1399.87,0.00030136,120]
[380172366,1755593311875,-400.0,0.00030136,120]
[380172367,1755593311913,-756.16,0.00030136,120]
[380172368,1755593311955,-403.69621209,0.00030136,120]
[380172369,1755593311990,-400.0,0.00030136,120]
[380172370,1755593312026,-392.76135242,0.00030136,120]
[380172371,1755593312066,-2607.91,0.00030136,120]
[380172372,1755593312103,-400.0,0.00030136,120]
[380172373,1755593312143,-400.0,0.00030136,120]
[380172374,1755593312181,-1685.77,0.00030136,120]
[380172375,1755593312216,-400.0,0.00030136,120]
[380172376,1755593312253,-400.0,0.00030136,120]
[380172377,1755593312288,-400.0,0.00030136,120]
[380172378,1755593312325,-3752.32,0.00030136,120]
[380172379,1755593312362,-400.0,0.00030136,120]
[380172380,1755593312396,-815.89,0.00030136,120]
[380172381,1755593312432,-1194.95,0.00030136,120]
[380172382,1755593312468,-2328.27,0.00030136,120]
[380172383,1755593312505,-1812.16,0.00030136,120]
[380172384,1755593312539,-426.09,0.00030136,120]
[380172385,1755593312576,-4179.34,0.00030136,120]
[380172386,1755593312609,-2574.9,0.00030136,120]
[380172387,1755593312643,-846.89,0.00030136,120]
[380172388,1755593312676,-400.0,0.00030136,120]
[380172389,1755593312710,-1728.05,0.00030136,120]
[380172390,1755593312746,-1222.74,0.00030136,120]
[380172391,1755593312784,-543.72,0.00030136,120]
[380172392,1755593312818,-400.0,0.00030136,120]
[380172393,1755593312851,-400.0,0.00030136,120]
[380172394,1755593312887,-3281.26,0.00030136,120]
[380172395,1755593312921,-400.0,0.00030136,120]
[380172396,1755593312955,-400.0,0.00030136,120]
[380172397,1755593312988,-400.0,0.00030136,120]
[380172398,1755593313023,-474.31,0.00030136,120]
[380172399,1755593313618,-1234.16,0.00030136,30]
[380172400,1755593313661,-400.0,0.00030136,120]
[380172401,1755593313702,-3620.0,0.00030136,120]
[380172402,1755593313742,-400.0,0.00030136,120]
[380172403,1755593313781,-1403.42,0.00030136,120]
[380172404,1755593313820,-401.46884128,0.00030136,120]
[380172405,1755593313859,-586.71,0.00030136,120]
[380172406,1755593313897,-271.37043739,0.00030136,120]
[380172407,1755593313937,-400.0,0.00030136,120]
[380172408,1755593313975,-772.89,0.00030136,120]
[380172409,1755593314012,-2407.17,0.00030136,120]
[380172410,1755593314052,-400.0,0.00030136,120]
[380172411,1755593314089,-400.0,0.00030136,120]
[380172412,1755593314128,-400.0,0.00030136,120]
[380172413,1755593314168,-2269.43,0.00030136,120]
[380172414,1755593314207,-3134.06,0.00030136,120]
[380172415,1755593314245,-400.0,0.00030136,120]
[380172416,1755593314282,-924.72,0.00030136,120]
[380172417,1755593314320,-760.88,0.00030136,120]
[380172418,1755593314359,-400.0,0.00030136,120]
[380172419,1755593314396,-400.0,0.00030136,120]
[380172420,1755593314432,-1727.99,0.00030136,120]
[380172421,1755593314467,-2525.52,0.00030136,120]
[380172422,1755593314505,-400.0,0.00030136,120]
[380172423,1755593314538,-559.67,0.00030136,120]
[380172424,1755593314574,-400.0,0.00030136,120]
[380172425,1755593314609,-400.0,0.00030136,120]
[380172426,1755593314642,-2193.65,0.00030136,120]
[380172427,1755593314676,-400.0,0.00030136,120]
[380172428,1755593314711,-3511.43,0.00030136,120]
[380172429,1755593314747,-864.16,0.00030136,120]
[380172430,1755593314782,-400.0,0.00030136,120]
[380172431,1755593314817,-2253.07,0.00030136,120]
[380172432,1755593314852,-662.26,0.00030136,120]
[380172433,1755593314889,-1255.42,0.00030136,120]
[380172434,1755593314927,-2199.43,0.00030136,120]
[380172435,1755593314964,-1045.24,0.00030136,120]
[380172436,1755593315000,-400.0,0.00030136,120]
[380172437,1755593315035,-400.0,0.00030136,120]
[380172438,1755593315073,-1130.09,0.00030136,120]
[380172439,1755593315108,-400.0,0.00030136,120]
[380172440,1755593315147,-872.81,0.00030136,120]
[380172441,1755593315185,-2402.4,0.00030136,120]
[380172442,1755593315223,-2171.65,0.00030136,120]
[380172443,1755593315259,-400.0,0.00030136,120]
[380172444,1755593315297,-2165.96,0.00030136,120]
[380172445,1755593315335,-400.0,0.00030136,120]
[380172446,1755593315371,-154.45987717,0.00030136,120]
[380172447,1755593315407,-400.0,0.00030136,120]
[380172448,1755593315443,-400.0,0.00030136,120]
[380172449,1755593315480,-400.0,0.00030136,120]
[380172450,1755593315521,-2434.45,0.00030136,120]
[380172451,1755593315564,-400.0,0.00030136,120]
[380172452,1755593315602,-1033.66,0.00030136,120]
[380172453,1755593315638,-400.0,0.00030136,120]
[380172454,1755593315674,-835.75,0.00030136,120]
[380172455,1755593315710,-400.0,0.00030136,120]
[380172456,1755593315746,-2513.93,0.00030136,120]
[380172457,1755593315781,-1427.08,0.00030136,120]
[380172458,1755593315815,-2167.68,0.00030136,120]
[380172459,1755593315849,-940.37,0.00030136,120]
[380172460,1755593315884,-400.0,0.00030136,120]
[380172461,1755593315918,-1770.89,0.00030136,120]
[380172462,1755593315954,-400.0,0.00030136,120]
[380172463,1755593315990,-1499.62,0.00030136,120]
[380172464,1755593316027,-400.0,0.00030136,120]
[380172465,1755593316063,-461.83844449,0.00030136,120]
[380172466,1755593316100,-3809.15,0.00030136,120]
[380172467,1755593316140,-2025.78,0.00030136,120]
[380172468,1755593316177,-1628.88,0.00030136,120]
[380172469,1755593316213,-473.19,0.00030136,120]
[380172470,1755593316248,-2210.47,0.00030136,120]
[380172471,1755593316282,-573.53,0.00030136,120]
[380172472,1755593316316,-400.0,0.00030136,120]
[380172473,1755593316352,-955.55,0.00030136,120]
[380172474,1755593316388,-400.0,0.00030136,120]
[380172475,1755593316424,-400.0,0.00030136,120]
[380172476,1755593316583,-400.0,0.00030136,120]
[380172477,1755593316621,-947.03,0.00030136,120]
[380172478,1755593316654,-821.99,0.00030136,120]
[380172479,1755593316686,-400.0,0.00030136,120]
[380172480,1755593316721,-2965.93,0.00030136,120]
[380172481,1755593316755,-500.0,0.00030136,60]
[380172482,1755593316787,-527.14,0.00030136,120]
[380172483,1755593316820,-400.0,0.00030136,120]
[380172484,1755593316853,-500.0,0.00030136,60]
[380172485,1755593316888,-400.0,0.00030136,120]
[380172486,1755593316924,-1720.82,0.00030136,120]
[380172487,1755593316959,-2110.39,0.00030136,120]
[380172488,1755593316994,-400.0,0.00030136,120]
[380172489,1755593317029,-400.0,0.00030136,120]
[380172490,1755593317064,-400.0,0.00030136,120]
[380172491,1755593317098,-400.0,0.00030136,120]
[380172492,1755593317136,-1855.41,0.00030136,120]
[380172493,1755593317174,-1824.55,0.00030136,120]
[380172494,1755593317210,-3283.28,0.00030136,120]
[380172495,1755593317247,-905.21,0.00030136,120]
[380172496,1755593317287,-400.0,0.00030136,120]
[380172497,1755593317325,-500.0,0.00030136,120]
[380172498,1755593317360,-400.0,0.00030136,120]
[380172499,1755593317394,-500.0,0.00030136,120]
[380172500,1755593317431,-400.0,0.00030136,120]
[380172501,1755593317465,-647.02,0.00030136,120]
[380172502,1755593317502,-202.3212292,0.00030136,120]
[380172503,1755593317536,-400.0,0.00030136,120]
[380172504,1755593317577,-401.52,0.00030136,120]
[380172505,1755593317615,-2229.94,0.00030136,120]
[380172506,1755593317648,-400.0,0.00030136,120]
[380172507,1755593317680,-2365.87,0.00030136,120]
[380172508,1755593317714,-400.0,0.00030136,120]
[380172509,1755593317754,-799.99,0.00030136,120]
[380172510,1755593317789,-400.0,0.00030136,120]
[380172511,1755593317824,-1257.57,0.00030136,120]
[380172512,1755593317858,-1324.91,0.00030136,120]
[380172513,1755593317893,-2249.2,0.00030136,120]
[380172514,1755593317928,-2135.79,0.00030136,120]
[380172515,1755593317962,-400.0,0.00030136,120]
[380172516,1755593317996,-825.68,0.00030136,120]
[380172517,1755593318031,-941.94,0.00030136,120]
[380172518,1755593318068,-400.0,0.00030136,120]
[380172519,1755593318103,-2149.81,0.00030136,120]
[380172520,1755593318139,-400.0,0.00030136,120]
[380172521,1755593318175,-2199.88,0.00030136,120]
[380172522,1755593318211,-400.0,0.00030136,120]
[380172523,1755593318249,-577.43,0.00030136,120]
[380172524,1755593318285,-400.0,0.00030136,120]
[380172525,1755593318323,-400.0,0.00030136,120]
[380172526,1755593318362,-2126.5,0.00030136,120]
[380172527,1755593318398,-1188.67,0.00030136,120]
[380172528,1755593318435,-347.19,0.00030136,120]
[380172529,1755593318471,-400.0,0.00030136,120]
[380172530,1755593318511,-699.25,0.00030136,120]
[380172531,1755593318546,-400.0,0.00030136,120]
[380172532,1755593318581,-1796.76,0.00030136,120]
[380172533,1755593318615,-400.0,0.00030136,120]
[380172534,1755593318649,-400.0,0.00030136,120]
[380172535,1755593318685,-400.0,0.00030136,120]
[380172536,1755593318721,-2203.47,0.00030136,120]
[380172537,1755593318756,-400.0,0.00030136,120]
[380172538,1755593318791,-1390.3,0.00030136,120]
[380172539,1755593318825,-1168.18,0.00030136,120]
[380172540,1755593318858,-3126.88,0.00030136,120]
[380172541,1755593318891,-400.0,0.00030136,120]
[380172542,1755593318927,-4869.22,0.00030136,120]
[380172543,1755593318963,-400.0,0.00030136,120]
[380172544,1755593318998,-4441.4,0.00030136,120]
[380172545,1755593319038,-1497.93,0.00030136,120]
[380172546,1755593319079,-400.0,0.00030136,120]
[380172547,1755593319122,-602.22,0.00030136,120]
[380172548,1755593319160,-400.0,0.00030136,120]
[380172549,1755593319200,-447.91,0.00030136,120]
[380172550,1755593319244,-1318.57,0.00030136,120]
[380172551,1755593319281,-400.0,0.00030136,120]
[380172552,1755593319320,-3440.34,0.00030136,120]
[380172553,1755593319357,-2598.35,0.00030136,120]
[380172554,1755593319394,-818.85,0.00030136,120]
[380172555,1755593319430,-679.72,0.00030136,120]
[380172556,1755593319467,-771.65,0.00030136,120]
[380172557,1755593319505,-1569.72,0.00030136,120]
[380172558,1755593319539,-400.0,0.00030136,120]
[380172559,1755593319575,-2502.7,0.00030136,120]
[380172560,1755593319607,-400.0,0.00030136,120]
[380172561,1755593319640,-2685.36,0.00030136,120]
[380172562,1755593319675,-400.0,0.00030136,120]
[380172563,1755593319712,-441.09990071,0.00030136,120]
[380172564,1755593319750,-2937.77,0.00030136,120]
[380172565,1755593319789,-985.02,0.00030136,120]
[380172566,1755593319828,-400.0,0.00030136,120]
[380172567,1755593319868,-3252.38,0.00030136,120]
[380172568,1755593319906,-1266.73,0.00030136,120]
[380172569,1755593319943,-847.32,0.00030136,120]
[380172570,1755593319978,-400.0,0.00030136,120]
[380172571,1755593320017,-1266.46,0.00030136,120]
[380172572,1755593320054,-2064.41,0.00030136,120]
[380172573,1755593320091,-1025.93,0.00030136,120]
[380172574,1755593320132,-1962.4,0.00030136,120]
[380172575,1755593320172,-400.0,0.00030136,120]
[380172576,1755593320211,-400.0,0.00030136,120]
[380172577,1755593320251,-2523.91,0.00030136,120]
[380172578,1755593320293,-400.0,0.00030136,120]
[380172579,1755593320334,-2182.63,0.00030136,120]
[380172580,1755593320380,-400.0,0.00030136,120]
[380172581,1755593320420,-2801.34,0.00030136,120]
[380172582,1755593320464,-1315.27,0.00030136,120]
[380172583,1755593320520,-400.0,0.00030136,120]
[380172584,1755593320565,-400.0,0.00030136,120]
[380172585,1755593320604,-570.3,0.00030136,120]
[380172586,1755593320641,-272.32924987,0.00030136,120]
[380172587,1755593320679,-400.0,0.00030136,120]
[380172588,1755593320724,-3842.89,0.00030136,120]
[380172589,1755593320762,-400.0,0.00030136,120]
[380172590,1755593320799,-500.0,0.00030136,120]
[380172591,1755593320835,-500.0,0.00030136,120]
[380172592,1755593320870,-500.0,0.00030136,120]
[380172593,1755593321225,-500.0,0.00030136,120]
[380172594,1755593321265,-500.0,0.00030136,120]
[380172595,1755593321308,-1056.07,0.00030136,120]
[380172596,1755593321348,-500.0,0.00030136,120]
[380172597,1755593321386,-601.73501877,0.00030136,120]
[380172598,1755593321423,-2607.83,0.00030136,120]
[380172599,1755593321459,-2486.53,0.00030136,120]
[380172600,1755593321493,-1928.3,0.00030136,120]
[380172601,1755593321529,-2379.37,0.00030136,120]
[380172602,1755593321565,-374.77380384,0.00030136,120]
[380172603,1755593321601,-744.53,0.00030136,120]
[380172604,1755593321641,-400.0,0.00030136,120]
[380172605,1755593321676,-573.28,0.00030136,120]
[380172606,1755593321711,-400.0,0.00030136,120]
[380172607,1755593321745,-2256.79,0.00030136,120]
[380172608,1755593321778,-2536.11,0.00030136,120]
[380172609,1755593321811,-997.72,0.00030136,120]
[380172610,1755593321845,-400.0,0.00030136,120]
[380172611,1755593321877,-199.68087844,0.00030136,120]
[380172612,1755593321911,-490.28,0.00030136,120]
[380172613,1755593321944,-493.83,0.00030136,120]
[380172614,1755593321977,-785.16,0.00030136,120]
[380172615,1755593322010,-2112.86,0.00030136,120]
[380172616,1755593322044,-400.0,0.00030136,120]
[380172617,1755593322079,-3244.78,0.00030136,120]
[380172618,1755593322114,-861.29,0.00030136,120]
[380172619,1755593322151,-400.0,0.00030136,120]
[380172620,1755593322187,-1427.16,0.00030136,120]
[380172621,1755593322222,-420.72734829,0.00030136,120]
[380172622,1755593322258,-638.84,0.00030136,120]
[380172623,1755593322294,-400.0,0.00030136,120]
[380172624,1755593322330,-2726.24,0.00030136,120]
[380172625,1755593322373,-647.1,0.00030136,120]
[380172626,1755593322410,-239.37213922,0.00030136,120]
[380172627,1755593322445,-2201.44,0.00030136,120]
[380172628,1755593322480,-400.0,0.00030136,120]
[380172629,1755593322515,-573.5,0.00030136,120]
[380172630,1755593322550,-400.0,0.00030136,120]
[380172631,1755593322587,-400.0,0.00030136,120]
[380172632,1755593322627,-400.0,0.00030136,120]
[380172633,1755593322681,-400.0,0.00030136,120]
[380172634,1755593322718,-1033.38,0.00030136,120]
[380172635,1755593322754,-689.06,0.00030136,120]
[380172636,1755593322788,-400.0,0.00030136,120]
[380172637,1755593322823,-400.0,0.00030136,120]
[380172638,1755593322858,-2897.24,0.00030136,120]
[380172639,1755593322892,-1424.33,0.00030136,120]
[380172640,1755593322928,-400.0,0.00030136,120]
[380172641,1755593322966,-483.02,0.00030136,120]
[380172642,1755593323003,-1337.96,0.00030136,120]
[380172643,1755593323046,-918.75,0.00030136,120]
[380172644,1755593323088,-2294.4,0.00030136,120]
[380172645,1755593323130,-798.59,0.00030136,120]
[380172646,1755593323172,-1612.44,0.00030136,120]
[380172647,1755593323213,-400.0,0.00030136,120]
[380172648,1755593323254,-1067.57,0.00030136,120]
[380172649,1755593323292,-400.0,0.00030136,120]
[380172650,1755593323333,-877.17,0.00030136,120]
[380172651,1755593323373,-400.0,0.00030136,120]
[380172652,1755593323412,-1947.97,0.00030136,120]
[380172653,1755593323449,-457.59,0.00030136,120]
[380172654,1755593323490,-400.0,0.00030136,120]
[380172655,1755593323532,-2570.26,0.00030136,120]
[380172656,1755593323570,-400.0,0.00030136,120]
[380172657,1755593323622,-464.31349715,0.00030136,120]
[380172658,1755593323663,-1950.81,0.00030136,120]
[380172659,1755593323706,-756.12,0.00030136,120]
[380172660,1755593323747,-878.23,0.00030136,120]
[380172661,1755593323785,-400.0,0.00030136,120]
[380172662,1755593323824,-2706.36,0.00030136,120]
[380172663,1755593323861,-2478.28,0.00030136,120]
[380172664,1755593323897,-1151.57,0.00030136,60]
[380172665,1755593323932,-2464.73,0.00030136,120]
[380172666,1755593323968,-400.0,0.00030136,120]
[380172667,1755593324003,-2630.54,0.00030136,120]
[380172668,1755593324043,-1306.85,0.00030136,120]
[380172669,1755593324082,-931.54,0.00030136,120]
[380172670,1755593324125,-1095.57,0.00030136,120]
[380172671,1755593324163,-400.0,0.00030136,120]
[380172672,1755593324202,-400.0,0.00030136,120]
[380172673,1755593324240,-400.0,0.00030136,120]
[380172674,1755593324276,-400.0,0.00030136,120]
[380172675,1755593324316,-400.0,0.00030136,120]
[380172676,1755593324356,-2391.68,0.00030136,120]
[380172677,1755593324395,-400.0,0.00030136,120]
[380172678,1755593324433,-756.96,0.00030136,120]
[380172679,1755593324471,-2238.75,0.00030136,120]
[380172680,1755593324510,-1753.93,0.00030136,120]
[380172681,1755593324547,-400.0,0.00030136,120]
[380172682,1755593324582,-436.32,0.00030136,120]
[380172683,1755593324618,-1229.78,0.00030136,120]
[380172684,1755593324652,-400.0,0.00030136,120]
[380172685,1755593324687,-400.0,0.00030136,30]
[380172686,1755593325148,-2726.62,0.00030136,120]
[380172687,1755593325263,-400.0,0.00030136,120]
[380172688,1755593325302,-1781.92,0.00030136,120]
[380172689,1755593325341,-400.0,0.00030136,120]
[380172690,1755593325380,-1751.21,0.00030136,120]
[380172691,1755593325417,-684.42,0.00030136,120]
[380172692,1755593325453,-400.0,0.00030136,120]
[380172693,1755593325489,-2487.14,0.00030136,120]
[380172694,1755593325526,-2231.43,0.00030136,120]
[380172695,1755593325559,-400.0,0.00030136,120]
[380172696,1755593325593,-500.0,0.00030136,30]
[380172697,1755593325627,-500.0,0.00030136,30]
[380172698,1755593325660,-400.0,0.00030136,120]
[380172699,1755593325696,-2424.86,0.00030136,120]
[380172700,1755593325730,-916.79,0.00030136,120]
[380172701,1755593325764,-500.0,0.00030136,30]
[380172702,1755593325799,-827.12,0.00030136,120]
[380172703,1755593325834,-400.0,0.00030136,120]
[380172704,1755593325867,-2854.89,0.00030136,120]
[380172705,1755593325899,-516.37,0.00030136,120]
[380172706,1755593325933,-3713.1,0.00030136,120]
[380172707,1755593325971,-2049.03,0.00030136,120]
[380172708,1755593326006,-400.0,0.00030136,120]
[380172709,1755593326042,-1190.84,0.00030136,120]
[380172710,1755593326078,-698.67,0.00030136,120]
[380172711,1755593326114,-2817.92,0.00030136,120]
[380172712,1755593326151,-400.0,0.00030136,120]
[380172713,1755593326188,-400.0,0.00030136,120]
[380172714,1755593326227,-437.59,0.00030136,120]
[380172715,1755593326267,-2768.65,0.00030136,120]
[380172716,1755593326306,-992.33,0.00030136,120]
[380172717,1755593326344,-400.0,0.00030136,120]
[380172718,1755593326380,-2372.06,0.00030136,120]
[380172719,1755593326416,-1027.82,0.00030136,120]
[380172720,1755593326454,-861.79,0.00030136,120]
[380172721,1755593326490,-534.97392938,0.00030136,120]
[380172722,1755593326528,-635.54,0.00030136,120]
[380172723,1755593326564,-2503.13,0.00030136,120]
[380172724,1755593326600,-400.0,0.00030136,120]
[380172725,1755593326637,-400.0,0.00030136,120]
[380172726,1755593326675,-772.72,0.00030136,120]
[380172727,1755593326714,-1827.62,0.00030136,120]
[380172728,1755593326752,-500.0,0.00030136,30]
[380172729,1755593326787,-437.97,0.00030136,120]
[380172730,1755593326822,-549.31,0.00030136,120]
[380172731,1755593326856,-500.0,0.00030136,30]
[380172732,1755593326889,-500.0,0.00030136,30]
[380172733,1755593326922,-500.0,0.00030136,30]
[380172734,1755593326955,-500.0,0.00030136,30]
[380172735,1755593326989,-500.0,0.00030136,30]
[380172736,1755593327023,-500.0,0.00030136,30]
[380172737,1755593327056,-400.0,0.00030136,120]
[380172738,1755593327088,-500.0,0.00030136,30]
[380172739,1755593327123,-500.0,0.00030136,30]
[380172740,1755593327158,-500.0,0.00030136,30]
[380172741,1755593327192,-500.0,0.00030136,30]
[380172742,1755593327229,-1277.43,0.00030136,120]
[380172743,1755593327265,-223.26280908,0.00030136,30]
[380172744,1755593327304,-400.0,0.00030136,120]
[380172745,1755593327342,-400.0,0.00030136,120]
[380172746,1755593327379,-400.0,0.00030136,120]
[380172747,1755593327416,-2196.01,0.00030136,120]
[380172748,1755593327451,-400.0,0.00030136,120]
[380172749,1755593327487,-923.06,0.00030136,120]
[380172750,1755593327524,-1635.71,0.00030136,120]
[380172751,1755593327564,-400.0,0.00030136,120]
[380172752,1755593327605,-619.1,0.00030136,120]
[380172753,1755593327642,-2650.83,0.00030136,120]
[380172754,1755593327677,-1146.39,0.00030136,120]
[380172755,1755593327714,-3147.92,0.00030136,120]
[380172756,1755593327752,-400.0,0.00030136,120]
[380172757,1755593327789,-4511.2,0.00030136,120]
[380172758,1755593327828,-2369.71,0.00030136,120]
[380172759,1755593327866,-400.0,0.00030136,120]
[380172760,1755593327903,-400.0,0.00030136,120]
[380172761,1755593327939,-3645.32,0.00030136,120]
[380172762,1755593327975,-400.0,0.00030136,120]
[380172763,1755593328012,-2095.95,0.00030136,120]
[380172764,1755593328175,-400.0,0.00030136,120]
[380172765,1755593328216,-400.0,0.00030136,120]
[380172766,1755593328255,-2102.78,0.00030136,120]
[380172767,1755593328294,-749.3,0.00030136,120]
[380172768,1755593328332,-400.0,0.00030136,120]
[380172769,1755593328369,-1113.14,0.00030136,120]
[380172770,1755593328404,-400.0,0.00030136,120]
[380172771,1755593328439,-772.28,0.00030136,120]
[380172772,1755593328473,-400.0,0.00030136,120]
[380172773,1755593328512,-1479.76,0.00030136,120]
[380172774,1755593328547,-2293.34,0.00030136,120]
[380172775,1755593328586,-2641.92,0.00030136,120]
[380172776,1755593328622,-400.0,0.00030136,120]
[380172777,1755593328658,-2616.89,0.00030136,120]
[380172778,1755593328694,-1148.72,0.00030136,120]
[380172779,1755593328730,-400.0,0.00030136,120]
[380172780,1755593328767,-1148.84,0.00030136,120]
[380172781,1755593328802,-3374.92,0.00030136,120]
[380172782,1755593328837,-981.69,0.00030136,120]
[380172783,1755593328871,-6583.35,0.00030136,120]
[380172784,1755593328906,-2628.47,0.00030136,120]
[380172785,1755593328939,-400.0,0.00030136,120]
[380172786,1755593328974,-2397.16,0.00030136,120]